fUSD/lending_fUSD_20260304
["ID","MTS","AMOUNT","RATE_DAILY","PERIOD"]
[407669157,1772650248198,-611.8050452,0.00032899,7]
[407669158,1772650248208,-611.8050452,0.00032899,7]
[407669159,1772650248218,-611.8050452,0.00032899,7]
[407669160,1772650248228,-611.8050452,0.00032899,7]
[407669161,1772650248239,-2985.0,0.000329,5]
[407669162,1772650248249,-58087.66643562,0.000329,20]
[407669171,1772651360150,-248.0,0.00012,2]
[407669172,1772651360174,-490.48231573,0.00012,2]
[407669173,1772651360196,-3353.72122173,0.000132,2]
[407669174,1772651360220,-360.05831488,0.00014,2]
[407669189,1772651432012,-152.9,0.00015988,2]
[407669191,1772651432022,-260.0,0.00016199,2]
[407669192,1772651432031,-300.0,0.00016199,2]
[407669193,1772651432041,-13410.53236997,0.000162,5]
[407669194,1772651432051,-5194.28055986,0.00017,2]
[407669195,1772651432061,-152.9,0.00017053,2]
[407669196,1772651432070,-250.0,0.00017586,2]
[407669197,1772651432083,-2390.65205688,0.00017586,2]
[407669198,1772651432093,-564.76476902,0.00017586,2]
[407669199,1772651432104,-1810.61934612,0.00017919,2]
[407669200,1772651432114,-500.0,0.00017999,2]
[407669201,1772651432123,-500.0,0.00017999,2]
[407669202,1772651432133,-500.0,0.00017999,2]
[407669203,1772651432142,-500.0,0.00017999,2]
[407669204,1772651432152,-500.0,0.00017999,2]
[407669205,1772651432162,-500.0,0.00017999,2]
[407669206,1772651432171,-500.0,0.00017999,2]
[407669207,1772651432180,-500.0,0.00017999,2]
[407669208,1772651432190,-500.0,0.00017999,2]
[407669209,1772651432200,-500.0,0.00017999,2]
[407669210,1772651432210,-500.0,0.00017999,2]
[407669211,1772651432220,-500.0,0.00017999,2]
[407669212,1772651432230,-551.02017634,0.00017999,2]
[407669213,1772651432240,-18261.30854099,0.00018,2]
[407669214,1772651432257,-360.80856145,0.00018,2]
[407669215,1772651432276,-5166.04098476,0.00018,2]
[407669216,1772651432287,-102718.92295993,0.00018,2]
[407669218,1772651432300,-169185.74629107,0.00018,2]
[407669221,1772651438108,-49211.11826978,0.00018,2]
[407669222,1772651438159,-2589.49791791,0.00018,2]
[407669223,1772651438173,-47470.73277659,0.00018,2]
[407669224,1772651438183,-5640.22839375,0.00018019,2]
[407669225,1772651438193,-152.9,0.00018119,2]
[407669226,1772651438203,-200.0,0.0001831,2]
[407669227,1772651438214,-500.0,0.0001831,2]
[407669228,1772651438225,-500.0,0.0001831,2]
[407669229,1772651438234,-500.0,0.0001831,2]
[407669230,1772651438244,-500.0,0.0001831,2]
[407669231,1772651438255,-500.0,0.0001831,2]
[407669232,1772651438265,-500.0,0.0001831,2]
[407669233,1772651438275,-500.0,0.0001831,2]
[407669234,1772651438285,-500.0,0.0001831,2]
[407669235,1772651438298,-500.0,0.0001831,2]
[407669236,1772651438309,-500.0,0.0001831,2]
[407669237,1772651438319,-500.0,0.0001831,2]
[407669238,1772651438328,-500.0,0.0001831,2]
[407669239,1772651438338,-500.0,0.0001831,2]
[407669240,1772651438348,-500.0,0.0001831,2]
[407669241,1772651438358,-151.0,0.0001831,2]
[407669242,1772651438368,-500.0,0.0001831,2]
[407669244,1772651438378,-500.0,0.0001831,2]
[407669246,1772651438388,-500.0,0.0001831,2]
[407669248,1772651438398,-151.0,0.0001831,2]
[407669250,1772651438407,-500.0,0.0001831,2]
[407669252,1772651438417,-500.0,0.0001831,2]
[407669254,1772651438427,-151.0,0.0001831,2]
[407669256,1772651438437,-151.0,0.0001831,2]
[407669258,1772651438447,-500.0,0.0001831,2]
[407669261,1772651438456,-500.0,0.0001831,2]
[407669263,1772651438466,-151.0,0.0001831,2]
[407669265,1772651438476,-151.0,0.0001831,2]
[407669267,1772651438486,-500.0,0.0001831,2]
[407669269,1772651438496,-151.0,0.0001831,2]
[407669271,1772651438505,-151.0,0.0001831,2]
[407669273,1772651438515,-151.0,0.0001831,2]
[407669275,1772651438524,-151.0,0.0001831,2]
[407669277,1772651438534,-151.0,0.0001831,2]
[407669279,1772651438544,-637.37903296,0.0001831,2]
[407669281,1772651438554,-1445.28347146,0.00018321,2]
[407669283,1772651438564,-172.65896273,0.00018751,2]
[407669285,1772651438574,-152.9,0.00019185,2]
[407669287,1772651438584,-713.89,0.00019534,2]
[407669289,1772651438593,-2926.77789107,0.0002,2]
[407669291,1772651438603,-152.9,0.00020251,2]
[407669293,1772651438613,-1810.61934604,0.00020483,2]
[407669295,1772651438623,-5640.22839374,0.00020572,2]
[407669297,1772651438632,-152.9,0.00021317,2]
[407669299,1772651438642,-152.9,0.00022383,2]
[407669300,1772651438652,-5662.46465901,0.00023,2]
[407669301,1772651438663,-2857.25477562,0.00023,30]
[407669302,1772651438673,-1810.61934604,0.00023047,2]
[407669303,1772651438682,-5640.22839374,0.00023125,2]
[407669304,1772651438692,-152.9,0.00023448,2]
[407669305,1772651438702,-152.9,0.00024514,2]
[407669306,1772651438711,-1000.0,0.00025063,2]
[407669307,1772651438721,-5000.0,0.00025271,2]
[407669308,1772651438731,-152.9,0.0002558,2]
[407669309,1772651438740,-1810.61934604,0.00025611,2]
[407669310,1772651438750,-151.0,0.00025675,7]
[407669311,1772651438760,-5640.22839374,0.00025678,2]
[407669312,1772651438772,-413.0,0.00025738,2]
[407669313,1772651438782,-858.13714409,0.00025869,2]
[407669314,1772651438792,-152.9,0.00026646,2]
[407669315,1772651438803,-500.0,0.00026826,2]
[407669316,1772651438814,-500.0,0.00026826,2]
[407669317,1772651438823,-500.0,0.00026826,2]
[407669318,1772651438833,-500.0,0.00026826,2]
[407669319,1772651438844,-500.0,0.00026826,2]
[407669320,1772651438854,-500.0,0.00026826,2]
[407669321,1772651438867,-500.0,0.00026826,2]
[407669322,1772651438877,-500.0,0.00026826,2]
[407669323,1772651438888,-500.0,0.00026826,2]
[407669324,1772651438899,-500.0,0.00026826,2]
[407669325,1772651438909,-500.0,0.00026826,2]
[407669326,1772651438919,-500.0,0.00026826,2]
[407669327,1772651438929,-500.0,0.00026826,2]
[407669328,1772651438939,-693.3919763,0.00026826,2]
[407669329,1772651438948,-500.0,0.00026826,2]
[407669330,1772651438959,-500.0,0.00026826,2]
[407669331,1772651438968,-500.0,0.00026826,2]
[407669332,1772651438978,-500.0,0.00026826,2]
[407669333,1772651438989,-500.0,0.00026826,2]
[407669334,1772651438999,-500.0,0.00026826,2]
[407669335,1772651439011,-500.0,0.00026826,2]
[407669336,1772651439021,-500.0,0.00026826,2]
[407669337,1772651439031,-500.0,0.00026826,2]
[407669338,1772651439042,-719.04747942,0.00026881,2]
[407669339,1772651439053,-219.95262778,0.00026895,2]
[407669340,1772651439062,-745.65223616,0.00026936,2]
[407669341,1772651439072,-773.2413689,0.00026991,2]
[407669342,1772651439084,-801.85129955,0.00027046,2]
[407669343,1772651439094,-831.51979763,0.00027101,2]
[407669344,1772651439103,-862.28603014,0.00027156,2]
[407669345,1772651439113,-894.19061326,0.00027211,2]
[407669346,1772651439124,-927.27566595,0.00027266,2]
[407669347,1772651439133,-961.58486559,0.00027321,2]
[407669348,1772651439144,-997.16350561,0.00027376,2]
[407669349,1772651439154,-263.7,0.00027397,10]
[407669350,1772651439164,-219.75,0.00027397,10]
[407669351,1772651439175,-1000.0,0.00027549,2]
[407669352,1772651439184,-152.9,0.00027712,2]
[407669353,1772651439194,-222.4409322,0.00028053,2]
[407669354,1772651439205,-184.8,0.00028102,2]
[407669355,1772651439217,-1810.61934604,0.00028175,2]
[407669356,1772651439408,-5640.22839374,0.00028231,2]
[407669357,1772651439419,-172.89,0.00028282,120]
[407669358,1772651439430,-413.0,0.00028738,2]
[407669359,1772651439440,-152.9,0.00028778,2]
[407669360,1772651439450,-200.0,0.00029103,2]
[407669361,1772651439460,-458.11271917,0.0002944,2]
[407669362,1772651439470,-2915.65,0.000298,24]
[407669363,1772651439480,-152.9,0.00029843,2]
[407669364,1772651439491,-2802.0,0.00030464,3]
[407669365,1772651439500,-1810.61934604,0.0003074,2]
[407669366,1772651439510,-5640.22839374,0.00030784,2]
[407669367,1772651439520,-152.9,0.00030909,2]
[407669368,1772651439530,-900.0,0.00030982,14]
[407669369,1772651439540,-1400.0,0.00030982,14]
[407669370,1772651439549,-1500.0,0.00030982,14]
[407669371,1772651439560,-283.92530909,0.00030992,2]
[407669372,1772651439581,-716.07469091,0.00030992,2]
[407669373,1772651439590,-1000.0,0.000318,2]
[407669374,1772651439600,-900.0,0.00031804,14]
[407669375,1772651439610,-1400.0,0.00031804,14]
[407669376,1772651439619,-1500.0,0.00031804,14]
[407669377,1772651439629,-172.89,0.00031818,120]
[407669378,1772651439639,-2754.3096491,0.0003185,20]
[407669379,1772651439655,-1609.13364488,0.0003185,20]
[407669380,1772651439666,-736.12857669,0.0003185,20]
[407669385,1772651440316,-166.66,0.00024791,30]
[407669386,1772651440326,-132.47576945,0.00025313,30]
[407669387,1772651440424,-34.18423055,0.00025313,30]
[407669388,1772651440433,-166.66,0.00025835,30]
[407669389,1772651440442,-166.66,0.00026357,30]
[407669390,1772651440451,-75.15176945,0.00026879,30]
[407669411,1772651443158,-2000.0,0.00026096,2]
[407669413,1772651443167,-91.50823055,0.00026879,30]
[407669415,1772651443178,-166.66,0.00027401,30]
[407669417,1772651443187,-57.83383802,0.000291,5]
[407669418,1772651445300,-359.82923726,0.000291,5]
[407669419,1772651445356,-152.33692472,0.000291,5]
[407669420,1772651445365,-183.12,0.00031794,10]
[407669421,1772651445375,-27545.41068882,0.0003185,20]
[407669430,1772651446045,-293.33518646,0.0003185,20]
[407669431,1772651446058,-18792.0,0.0003185,20]
[407669432,1772651446256,-75754.68225405,0.0003185,20]
[407669433,1772651446266,-236.580893,0.0003185,7]
[407669434,1772651446275,-152.9,0.00031975,2]
[407669435,1772651446284,-186.0,0.00031997,3]
[407669436,1772651446294,-500.0,0.00032383,2]
[407669437,1772651446303,-173.67,0.00032545,2]
[407669438,1772651446314,-500.0,0.000326,11]
[407669439,1772651446324,-900.0,0.00032626,14]
[407669440,1772651446334,-1400.0,0.00032626,14]
[407669441,1772651446343,-1500.0,0.00032626,14]
[407669442,1772651446352,-2802.0,0.00032694,11]
[407669443,1772651446363,-5000.0,0.000327,2]
[407669445,1772651446372,-169.08007546,0.000327,2]
[407669446,1772651446383,-1000.0,0.000327,11]
[407669447,1772651446392,-1874.48939945,0.000327,2]
[407669448,1772651446402,-3230.31277937,0.000327,2]
[407669449,1772651446412,-299.11495056,0.00032789,2]
[407669450,1772651446422,-337.18748694,0.0003279,2]
[407669451,1772651446435,-500.0,0.00032799,120]
[407669452,1772651446446,-500.0,0.00032799,120]
[407669453,1772651446456,-500.0,0.00032799,120]
[407669454,1772651446468,-500.0,0.00032799,120]
[407669455,1772651446479,-500.0,0.00032799,120]
[407669456,1772651446492,-500.0,0.00032799,120]
[407669457,1772651446501,-500.0,0.00032799,120]
[407669458,1772651446512,-500.0,0.00032799,120]
[407669459,1772651446523,-500.0,0.00032799,120]
[407669460,1772651446534,-500.0,0.00032799,120]
[407669461,1772651446544,-500.0,0.00032799,2]
[407669462,1772651446559,-500.0,0.00032799,2]
[407669463,1772651446569,-500.0,0.00032799,2]
[407669464,1772651446578,-500.0,0.00032799,2]
[407669465,1772651446588,-500.0,0.00032799,2]
[407669466,1772651446599,-500.0,0.00032799,2]
[407669467,1772651446608,-500.0,0.00032799,2]
[407669468,1772651446619,-500.0,0.00032799,2]
[407669469,1772651446628,-500.0,0.00032799,2]
[407669470,1772651446642,-500.0,0.00032799,2]
[407669471,1772651446654,-3116.0,0.000328,5]
[407669472,1772651446664,-1000.0,0.000328,2]
[407669473,1772651446675,-1600.0,0.000328,11]
[407669474,1772651446687,-150.31285625,0.000328,2]
[407669475,1772651446698,-1543.99,0.00032889,120]
[407669476,1772651446707,-1543.99,0.00032898,120]
[407669477,1772651446716,-1336.91403435,0.00032899,30]
[407669478,1772651446726,-1543.99,0.00032899,120]
[407669479,1772651446736,-1543.99,0.00032899,120]
[407669480,1772651446745,-1543.99,0.00032899,120]
[407669481,1772651446755,-500.0,0.00032899,120]
[407669482,1772651446764,-1543.99,0.00032899,120]
[407669483,1772651446775,-1543.99,0.00032899,120]
[407669484,1772651446784,-1543.99,0.00032899,120]
[407669485,1772651446794,-1543.99,0.00032899,120]
[407669486,1772651446805,-1543.99,0.00032899,120]
[407669487,1772651446815,-1543.99,0.00032899,120]
[407669488,1772651446824,-391.09255332,0.00032899,120]
[407669489,1772651446841,-620.03527347,0.00032899,120]
[407669492,1772651968748,-794.2,0.00032799,120]
[407669493,1772651968770,-794.2,0.00032799,120]
[407669494,1772651968793,-794.2,0.00032799,120]
[407669495,1772651968814,-794.2,0.00032799,120]
[407669496,1772651968836,-794.2,0.00032799,120]
[407669497,1772651968857,-794.2,0.00032799,120]
[407669498,1772651968878,-234.8,0.00032799,120]
[407669499,1772652060448,-559.4,0.00032799,120]
[407669500,1772652060474,-794.2,0.00032799,120]
[407669501,1772652060498,-794.2,0.00032799,120]
[407669502,1772652060522,-794.2,0.00032799,120]
[407669503,1772652060547,-794.2,0.00032899,120]
[407669504,1772652060572,-348.24,0.00033385,120]
[407669505,1772652060595,-300.0,0.00033425,120]
[407669506,1772652060620,-794.2,0.00033949,120]
[407669507,1772652060644,-821.36,0.00035,120]
[407669508,1772652069952,-1307.64,0.00035,120]
[407669509,1772652082369,160.0,0.00035,120]
[407669510,1772652458511,-172.89,0.00035353,120]
[407669511,1772652458534,-300.0,0.0003589,120]
[407669512,1772652458760,2000.0,0.000345,120]
[407669513,1772652458787,667.11,0.000345,120]
[407669519,1772652632214,-163.33,0.0001679,2]
[407669520,1772652632225,-163.33,0.0001706,2]
[407669521,1772652632235,-163.33,0.0001733,2]
[407669522,1772652632245,-163.33,0.000176,2]
[407669523,1772652632255,-163.33,0.0001787,2]
[407669524,1772652632267,-500.0,0.00017999,2]
[407669525,1772652632277,-163.33,0.0001814,2]
[407669526,1772652632287,-163.39,0.0001841,2]
[407669527,1772652632297,-300.42437053,0.00019799,2]
[407669528,1772652632307,-161.4568,0.00024558,2]
[407669529,1772652632317,-150.0,0.000256,14]
[407669530,1772652632329,-233.67,0.00026545,2]
[407669531,1772652632339,-500.0,0.0002721,2]
[407669532,1772652632350,-246.18,0.000275,14]
[407669533,1772652632360,-705.41,0.0002868,2]
[407669534,1772652632370,-200.0,0.000308,120]
[407669535,1772652632380,-1200.0,0.00030981,2]
[407669536,1772652632390,-600.0,0.00030982,14]
[407669537,1772652632402,-1200.0,0.00030982,14]
[407669538,1772652632412,-500.0,0.00031058,2]
[407669539,1772652632422,-150.0,0.00031189,2]
[407669540,1772652632433,-400.0,0.00031255,2]
[407669541,1772652632443,-1200.0,0.00031256,14]
[407669542,1772652632452,-467.02,0.00031378,2]
[407669544,1772652632462,-172.65896273,0.00031614,2]
[407669546,1772652632472,-910.33,0.00031651,30]
[407669548,1772652632482,-360.0,0.000318,5]
[407669550,1772652632492,-600.0,0.00031804,14]
[407669551,1772652632502,-1200.0,0.00031804,14]
[407669554,1772652632512,-1200.0,0.00032078,14]
[407669556,1772652632523,-200.0,0.00032309,2]
[407669558,1772652632532,-1852.42,0.00032385,2]
[407669560,1772652632543,-5000.0,0.000326,7]
[407669562,1772652632552,-400.0,0.000326,11]
[407669564,1772652632562,-600.0,0.00032626,14]
[407669566,1772652632572,-1200.0,0.00032626,14]
[407669568,1772652632582,-2913.926,0.000327,33]
[407669569,1772652632592,-170.138,0.000327,33]
[407669572,1772652632603,-169.08007546,0.000327,2]
[407669573,1772652632613,-2500.0,0.000327,2]
[407669574,1772652632622,-5000.0,0.000327,2]
[407669575,1772652632632,-800.0,0.000327,11]
[407669576,1772652632641,-1668.91579122,0.000327,2]
[407669577,1772652632661,-547.77308168,0.000327,2]
[407669578,1772652632672,-39.40248465,0.000327,2]
[407669579,1772652632683,-413.46020109,0.000327,6]
[407669580,1772652632692,-278.52586619,0.0003278,4]
[407669581,1772652632704,-4221.47413381,0.0003278,4]
[407669582,1772652632714,-4000.0,0.0003278,5]
[407669583,1772652632725,-500.0,0.0003278,2]
[407669584,1772652632734,-500.0,0.0003278,2]
[407669585,1772652632744,-500.0,0.0003278,2]
[407669586,1772652632753,-500.0,0.0003278,2]
[407669587,1772652632762,-500.0,0.0003278,2]
[407669588,1772652632771,-500.0,0.0003278,2]
[407669589,1772652632780,-500.0,0.0003278,2]
[407669590,1772652632789,-500.0,0.0003278,2]
[407669591,1772652632799,-693.3919763,0.0003278,2]
[407669592,1772652632808,-500.0,0.0003278,2]
[407669593,1772652632819,-151.0,0.0003278,2]
[407669594,1772652632831,-151.0,0.0003278,2]
[407669595,1772652632841,-151.0,0.0003278,2]
[407669596,1772652632850,-151.0,0.0003278,2]
[407669597,1772652632860,-151.0,0.0003278,2]
[407669598,1772652632869,-151.0,0.0003278,2]
[407669599,1772652632881,-151.0,0.0003278,2]
[407669600,1772652632891,-151.0,0.0003278,2]
[407669601,1772652632901,-151.0,0.0003278,2]
[407669602,1772652632910,-151.0,0.0003278,2]
[407669603,1772652632920,-151.0,0.0003278,2]
[407669604,1772652632931,-152.6,0.0003279,10]
[407669605,1772652632940,-763.03,0.0003279,10]
[407669606,1772652632949,-224.79165795,0.0003279,2]
[407669607,1772652632959,-500.0,0.00032799,2]
[407669608,1772652632968,-500.0,0.00032799,2]
[407669609,1772652632977,-500.0,0.00032799,2]
[407669610,1772652632987,-500.0,0.00032799,2]
[407669611,1772652632996,-500.0,0.00032799,2]
[407669612,1772652633005,-280.65111122,0.00032799,2]
[407669613,1772652633014,-500.0,0.00032799,2]
[407669614,1772652633024,-500.0,0.00032799,2]
[407669615,1772652633033,-500.0,0.00032799,2]
[407669616,1772652633042,-500.0,0.00032799,2]
[407669617,1772652633051,-500.0,0.00032799,2]
[407669618,1772652633060,-500.0,0.00032799,2]
[407669619,1772652633069,-500.0,0.00032799,2]
[407669620,1772652633078,-500.0,0.00032799,2]
[407669621,1772652633087,-500.0,0.00032799,2]
[407669622,1772652633096,-500.0,0.00032799,2]
[407669623,1772652633105,-351.48460979,0.00032799,2]
[407669624,1772652633114,-500.0,0.00032799,30]
[407669625,1772652633124,-500.0,0.00032799,30]
[407669626,1772652633133,-291.80094519,0.00032799,30]
[407669627,1772652633143,-209.38046539,0.00032799,2]
[407669628,1772652633153,-2287.0,0.000328,5]
[407669629,1772652633164,-132337.34962944,0.000328,2]
[407669630,1772652633176,-36906.36500901,0.000328,2]
[407669631,1772652633188,-3465.03416217,0.000328,2]
[407669632,1772652633251,-583.896,0.000328,2]
[407669633,1772652633263,-2829.5206876,0.000328,2]
[407669637,1772652638504,-50.15141533,0.00016,2]
[407669638,1772652638520,-135.13712243,0.00016,2]
[407669639,1772652638529,-1272.38722468,0.000328,2]
[407669640,1772652638540,-2654.66556684,0.000328,2]
[407669641,1772652638551,-380.2414552,0.000328,2]
[407669642,1772652638562,-447.68435404,0.000328,2]
[407669643,1772652638574,-38051.9742546,0.000328,2]
[407669644,1772652638588,-26630.05217173,0.000328,2]
[407669659,1772652640479,-150.0,0.00024658,2]
[407669660,1772652640489,-225.4,0.000327,2]
[407669661,1772652640537,-858.09760872,0.000327,2]
[407669662,1772652640547,-65758.75212113,0.000328,2]
[407669663,1772652640559,-346.48625776,0.000328,2]
[407669664,1772652640571,-2234.6404385,0.000328,2]
[407669665,1772652641016,-150.0,0.0002589,2]
[407669666,1772652641026,-5582.09999995,0.000328,2]
[407669698,1772652645799,-90.87137232,0.00031256,14]
[407669699,1772652645972,-1009.12862768,0.00031256,14]
[407669700,1772652645982,-371.85830671,0.00031256,14]
[407669701,1772652646005,-285.3534424,0.00031256,14]
[407669702,1772652646017,-442.78825089,0.00031256,14]
[407669703,1772652646027,-1100.0,0.00032078,14]
[407669704,1772652646037,-1100.0,0.00032078,14]
[407669705,1772652646046,-2802.0,0.000322,3]
[407669706,1772652646055,-1562.07449955,0.000327,2]
[407669707,1772652646065,-24978.53724972,0.000328,2]
[407669710,1772652646088,-1149.23488766,0.000328,2]
[407669726,1772652646202,-9271.79128022,0.000328,2]
[407669743,1772652646364,-716896.42743155,0.000328,2]
[407669746,1772652646377,-1047055.63138702,0.000328,2]
[407669853,1772652736816,966.18987245,9.003e-05,2]
[407669854,1772652741778,500.0,9.003e-05,2]
[407669855,1772652742251,579.54095506,9.003e-05,2]
[407669856,1772652744827,852.89916107,9.003e-05,2]
[407669857,1772653122366,164.15129878,0.000119,2]
[407669858,1772653437751,164.15129878,0.000119,2]
[407669859,1772653502637,-248.0,0.00011999,2]
[407669860,1772653502663,-78.0,0.00011999,2]
[407669870,1772653831462,-150.0,0.00011999,2]
[407669871,1772653831473,-300.0,0.00011999,2]
[407669873,1772653831483,-248.0,0.00011999,2]
[407669875,1772653831493,-500.0,0.00012,2]
[407669876,1772653831503,-500.0,0.00012,2]
[407669877,1772653831513,-820.88890927,0.00012,2]
[407669878,1772653831523,-500.0,0.00012,2]
[407669879,1772653831533,-500.0,0.00012,2]
[407669881,1772653831543,-500.0,0.00012,2]
[407669883,1772653831552,-928.4967156,0.00012,2]
[407669885,1772653831561,-500.0,0.00012,2]
[407669886,1772653831571,-500.0,0.00012,2]
[407669887,1772653831581,-465.14100315,0.00012,2]
[407669888,1772653831591,-250.0,0.00013199,2]
[407669889,1772653831600,-1876.6167022,0.00013199,2]
[407669890,1772653831610,-600.0,0.00013954,2]
[407669891,1772653831619,-598.20716313,0.00013954,2]
[407669892,1772653831629,-183.81,0.00014114,2]
[407669893,1772653831638,-183.81,0.00014857,2]
[407669894,1772653831648,-183.81,0.000156,2]
[407669895,1772653831658,-183.81,0.00016343,2]
[407669896,1772653831668,-229.03924439,0.00016642,2]
[407669897,1772653831678,-155.32,0.0001679,2]
[407669898,1772653831687,-227.0,0.00016802,2]
[407669899,1772653831698,-155.32,0.0001706,2]
[407669900,1772653831710,-183.81,0.00017086,2]
[407669901,1772653831720,-155.32,0.0001733,2]
[407669902,1772653831730,-1408.0,0.00017387,2]
[407669903,1772653831739,-857.3704873,0.00017412,2]
[407669904,1772653831750,-1557.0,0.00017421,2]
[407669905,1772653831760,-1046.0,0.00017456,2]
[407669906,1772653831770,-155.32,0.000176,2]
[407669907,1772653831961,-183.81,0.00017828,2]
[407669908,1772653831974,-845.0,0.00017837,2]
[407669909,1772653831985,-155.32,0.0001787,2]
[407669910,1772653831995,-1601.0,0.00017872,2]
[407669911,1772653832006,-183.81,0.00018571,2]
[407669912,1772653832014,-183.81,0.00019314,2]
[407669913,1772653832023,-183.81,0.00020057,2]
[407669914,1772653832033,-183.81,0.000208,2]
[407669915,1772653832043,-183.81,0.00021543,2]
[407669916,1772653832053,-222.38,0.00021875,2]
[407669917,1772653832064,-183.81,0.00022286,2]
[407669918,1772653832074,-183.81,0.00023028,2]
[407669919,1772653832083,-183.81,0.00023771,2]
[407669920,1772653832092,-289.77599983,0.00023908,2]
[407669921,1772653832102,-183.81,0.00024514,2]
[407669922,1772653832112,-168.85,0.00024541,2]
[407669923,1772653832121,-1500.0,0.00024614,2]
[407669924,1772653832131,-150.0,0.00024658,2]
[407669925,1772653832141,-1000.0,0.00024939,2]
[407669926,1772653832151,-1000.0,0.00024957,2]
[407669927,1772653832160,-500.0,0.00025121,2]
[407669928,1772653832170,-183.81,0.00025257,2]
[407669929,1772653832179,-153.42,0.00025854,2]
[407669930,1772653832189,-150.0,0.0002589,2]
[407669931,1772653832198,-183.81,0.00026,2]
[407669932,1772653832208,-150.0,0.000267,14]
[407669933,1772653832217,-183.81,0.00026743,2]
[407669934,1772653832227,-150.0,0.00027185,2]
[407669935,1772653832237,-183.81,0.00027485,2]
[407669936,1772653832247,-413.0,0.00027513,2]
[407669937,1772653832257,-3787.201,0.00027513,2]
[407669938,1772653832267,-168.85,0.00027609,120]
[407669939,1772653832276,-449.47647556,0.00027874,2]
[407669940,1772653832286,-172.44,0.00028,14]
[407669941,1772653832296,-1000.0,0.00028056,2]
[407669942,1772653832305,-183.81,0.00028228,2]
[407669943,1772653832315,-3240.0,0.00028255,2]
[407669944,1772653832325,-528.68,0.00029564,2]
[407669945,1772653832335,-528.68,0.00029838,2]
[407669946,1772653832345,-249.94,0.00030112,2]
[407669947,1772653832355,-200.0,0.00030128,2]
[407669948,1772653832364,-184.8,0.00030263,2]
[407669949,1772653832374,-322.0,0.00030314,30]
[407669950,1772653832383,-413.0,0.00030513,2]
[407669951,1772653832394,-3744.0,0.00030513,2]
[407669952,1772653832405,-168.85,0.00030677,120]
[407669953,1772653832414,-300.0,0.00030793,2]
[407669954,1772653832426,-700.0,0.00030982,14]
[407669955,1772653832437,-1000.0,0.00031174,2]
[407669956,1772653832447,-270.0,0.00031229,2]
[407669957,1772653832457,-270.0,0.00031231,2]
[407669958,1772653832467,-2914.271,0.00031256,28]
[407669959,1772653832478,-270.0,0.00031264,2]
[407669960,1772653832488,-270.0,0.00031352,7]
[407669961,1772653832499,-271.0,0.00031556,2]
[407669962,1772653832508,-168.0,0.00031573,2]
[407669963,1772653832518,-400.0,0.000316,11]
[407669964,1772653832528,-2802.0,0.00031605,3]
[407669965,1772653832538,-168.0,0.00031626,2]
[407669966,1772653832549,-2500.0,0.0003164,2]
[407669967,1772653832559,-1841.65853484,0.00031647,2]
[407669968,1772653832569,-1206.5711,0.0003165,30]
[407669969,1772653832578,-5000.0,0.0003165,2]
[407669970,1772653832589,-3722.55073989,0.0003169,2]
[407669971,1772653832598,-169.08007546,0.0003169,2]
[407669972,1772653832609,-1301.7287496,0.0003169,2]